bitfinex/quotes_BTCUSD_20250604
["timestamp","ask_amount","ask_price","bid_price","bid_amount"]
[1749004073022,1.08415539,105630.0,105620.0,0.89815605]
[1749004073226,1.06641826,105630.0,105620.0,0.89815605]
[1749004074377,1.08415542,105630.0,105620.0,0.89815605]
[1749004074589,1.08415549,105630.0,105620.0,0.89815605]
[1749004074829,1.06641826,105630.0,105620.0,0.89815605]
[1749004075730,1.08415566,105630.0,105620.0,0.89815605]
[1749004075937,1.06641826,105630.0,105620.0,0.89815605]
[1749004076425,1.08415558,105630.0,105620.0,0.89815605]
[1749004076637,1.08251826,105630.0,105620.0,0.89815605]
[1749004077264,1.10025554,105630.0,105620.0,0.89815605]
[1749004077481,1.08251826,105630.0,105620.0,0.89815605]
[1749004077709,1.10025553,105630.0,105620.0,0.89815605]
[1749004077931,1.10025552,105630.0,105620.0,0.89815605]
[1749004078149,1.08251826,105630.0,105620.0,0.89815605]
[1749004078366,1.08251826,105630.0,105620.0,0.89811605]
[1749004079239,1.10025566,105630.0,105620.0,0.89811605]
[1749004079460,1.12833193,105630.0,105620.0,0.52059605]
[1749004079677,1.12833193,105630.0,105620.0,0.89807605]
[1749004079678,1.14810268,105630.0,105620.0,0.89807605]
[1749004079896,1.17651768,105630.0,105620.0,0.89807605]
[1749004080124,1.19425594,105630.0,105620.0,0.52059605]
[1749004080339,1.17651768,105630.0,105620.0,0.89807605]
[1749004081005,1.17652616,105630.0,105620.0,0.89807605]
[1749004083620,1.19426514,105630.0,105620.0,0.89807605]
[1749004083839,1.17652616,105630.0,105620.0,0.90103257]
[1749004084059,1.19426521,105630.0,105620.0,0.89807605]
[1749004084306,1.17648043,105630.0,105620.0,0.89807605]
[1749004084748,1.19421935,105630.0,105620.0,0.89807605]
[1749004084962,1.17648043,105630.0,105620.0,0.89807605]
[1749004085185,1.19421936,105630.0,105620.0,0.89807605]
[1749004085394,1.17648043,105630.0,105620.0,0.89807605]
[1749004085631,1.17648043,105630.0,105620.0,0.90103256]
[1749004085860,1.17648043,105630.0,105620.0,0.89807605]
[1749004086957,1.17648043,105630.0,105620.0,0.90103256]
[1749004087161,1.17648043,105630.0,105620.0,0.89807605]
[1749004087369,1.17648043,105630.0,105620.0,0.90103256]
[1749004087570,1.17648043,105630.0,105620.0,0.89807605]
[1749004088248,1.11093326,105630.0,105620.0,0.89807605]
[1749004088468,1.19419656,105630.0,105620.0,0.89807605]
[1749004088686,1.17645759,105630.0,105620.0,0.89807605]
[1749004089157,0.45093933,105630.0,105620.0,0.89512]
[1749004089409,0.35670913,105630.0,105620.0,0.91042]
[1749004089640,0.69670913,105630.0,105620.0,0.91042]
[1749004090439,0.35670913,105630.0,105620.0,0.92602]
[1749004092324,0.71141826,105630.0,105620.0,0.91042]
[1749004094853,0.72681826,105630.0,105620.0,0.60616]
[1749004095082,0.72681826,105630.0,105620.0,0.89508]
[1749004096512,1.06681826,105630.0,105620.0,0.89508]
[1749004097621,0.0162,105610.0,105600.0,0.88723096]
[1749004097943,0.0162,105610.0,105600.0,1.22390785]
[1749004097944,1.09542739,105610.0,105600.0,1.22390785]
[1749004098169,1.09542739,105610.0,105600.0,0.90987096]
[1749004098170,1.32132192,105610.0,105600.0,0.90987096]
[1749004098371,1.78225614,105610.0,105600.0,0.62095096]
[1749004098582,1.80665257,105610.0,105600.0,0.89508]
[1749004098791,1.78225614,105610.0,105600.0,0.60816]
[1749004099004,1.78225614,105610.0,105600.0,0.89726416]
[1749004099005,1.79999947,105610.0,105600.0,0.89726416]
[1749004099214,1.78225614,105610.0,105600.0,0.89526416]
[1749004099419,1.71414215,105610.0,105600.0,0.89526416]
[1749004099606,1.7171425,105610.0,105600.0,0.89526416]
[1749004099843,1.71248871,105610.0,105600.0,0.89526416]
[1749004100047,1.69474492,105610.0,105600.0,0.89526416]
[1749004100170,1.71248871,105610.0,105600.0,0.89526416]
[1749004100372,1.71914264,105610.0,105600.0,0.89822146]
[1749004100600,1.69474492,105610.0,105600.0,0.89526416]
[1749004101028,1.65139885,105610.0,105600.0,0.89526416]
[1749004101191,1.22503121,105610.0,105600.0,0.89822141]
[1749004101398,1.22503121,105610.0,105600.0,0.89526416]
[1749004101598,1.22503121,105610.0,105600.0,0.89822136]
[1749004101794,1.39193934,105610.0,105600.0,0.89526416]
[1749004102067,1.38528564,105610.0,105600.0,0.89526416]
[1749004102276,1.27503121,105610.0,105600.0,0.89526416]
[1749004102714,1.22503121,105610.0,105600.0,0.89526416]
[1749004103125,1.24277467,105610.0,105600.0,0.89526416]
[1749004103326,1.24277468,105610.0,105600.0,0.89526416]
[1749004103598,1.23168501,105610.0,105600.0,0.89526416]
[1749004103783,1.22503121,105610.0,105600.0,0.89526416]
[1749004104644,1.31754243,105610.0,105600.0,0.89526416]
[1749004105306,1.3352859,105610.0,105600.0,0.89526416]
[1749004105525,1.31754243,105610.0,105600.0,0.89526416]
[1749004105952,1.22503121,105610.0,105600.0,0.89526416]
[1749004106723,1.24277466,105610.0,105600.0,0.89526416]
[1749004106931,1.22503121,105610.0,105600.0,0.89526416]
[1749004107340,1.24277463,105610.0,105600.0,0.89526416]
[1749004107579,1.22503121,105610.0,105600.0,0.89526416]
[1749004107795,1.28323396,105610.0,105600.0,0.89526416]
[1749004108434,1.30097738,105610.0,105600.0,0.89526416]
[1749004108649,1.28323396,105610.0,105600.0,0.89526416]
[1749004110147,1.30097721,105610.0,105600.0,0.89526416]
[1749004110349,1.28323396,105610.0,105600.0,0.89526416]
[1749004110980,1.28323396,105610.0,105600.0,0.89530416]
[1749004111628,1.3009772,105610.0,105600.0,0.89530416]
[1749004111854,1.28323396,105610.0,105600.0,0.89530416]
[1749004112227,1.22503121,105610.0,105600.0,0.89530416]
[1749004113991,0.74457953,105610.0,105600.0,0.89530416]
[1749004114206,0.74612114,105610.0,105600.0,0.91080416]
[1749004114424,0.72837953,105610.0,105600.0,0.91080416]
[1749004115740,0.69995653,105610.0,105600.0,0.91080416]
[1749004116159,0.71769701,105610.0,105600.0,0.91080416]
[1749004116379,0.69995653,105610.0,105600.0,0.91080416]
[1749004116593,0.69995653,105610.0,105600.0,0.92650416]
[1749004116594,0.35995653,105610.0,105600.0,0.92650416]
[1749004117014,0.69995653,105610.0,105600.0,0.92650416]
[1749004117426,0.71769634,105610.0,105600.0,0.92650416]
[1749004117635,0.69995653,105610.0,105600.0,0.92650416]
[1749004118052,0.71769607,105610.0,105600.0,0.92650416]
[1749004118249,0.69995653,105610.0,105600.0,0.92650416]
[1749004118707,0.71769642,105610.0,105600.0,0.92650416]
[1749004118934,0.69995653,105610.0,105600.0,0.92650416]
[1749004120475,0.69995653,105610.0,105600.0,0.51778416]
[1749004120696,1.07121306,105610.0,105600.0,0.89526416]
[1749004120920,1.08895297,105610.0,105600.0,0.89526416]
[1749004121143,1.07121306,105610.0,105600.0,0.89526416]
[1749004121553,0.71625653,105610.0,105600.0,0.89526416]
[1749004124720,0.73399648,105610.0,105600.0,0.89526416]
[1749004124929,0.71625653,105610.0,105600.0,0.89526416]
[1749004125352,0.73399648,105610.0,105600.0,0.89526416]
[1749004125558,0.71625653,105610.0,105600.0,0.89526416]
[1749004126823,0.73399648,105610.0,105600.0,0.89526416]
[1749004127030,0.71625653,105610.0,105600.0,0.89526416]
[1749004127242,0.73399648,105610.0,105600.0,0.89526416]
[1749004127455,0.71625653,105610.0,105600.0,0.89526416]
[1749004128333,0.69995653,105610.0,105600.0,0.89526416]
[1749004128547,0.69995653,105610.0,105600.0,0.91146416]
[1749004129178,0.71555653,105610.0,105600.0,0.91146416]
[1749004130047,0.71555653,105610.0,105600.0,0.89526416]
[1749004130681,0.69995653,105610.0,105600.0,0.89526416]
[1749004130885,0.69995653,105610.0,105600.0,0.91086416]
[1749004131312,0.71645653,105610.0,105600.0,0.89526416]
[1749004131544,0.69995653,105610.0,105600.0,0.89526416]
[1749004131765,0.69995653,105610.0,105600.0,0.91186416]
[1749004132414,0.71769648,105610.0,105600.0,0.91186416]
[1749004132634,0.69995653,105610.0,105600.0,0.91186416]
[1749004134575,0.69995653,105610.0,105600.0,0.93186416]
[1749004134782,0.71769648,105610.0,105600.0,0.93186416]
[1749004134993,0.69995653,105610.0,105600.0,0.93186416]
[1749004135755,0.71769646,105610.0,105600.0,0.93186416]
[1749004135972,0.345,105610.0,105600.0,0.93186416]
[1749004136186,0.69995653,105610.0,105600.0,0.93186416]
[1749004137115,0.71769646,105610.0,105600.0,0.93186416]
[1749004137564,0.69995653,105610.0,105600.0,0.93186416]
[1749004138018,0.71769646,105610.0,105600.0,0.93186416]
[1749004138172,0.69995653,105610.0,105600.0,0.93186416]
[1749004138589,0.71605653,105610.0,105600.0,0.93186416]
[1749004139252,0.71605653,105610.0,105600.0,0.91526416]
[1749004139682,0.73379647,105610.0,105600.0,0.91526416]
[1749004139896,0.71605653,105610.0,105600.0,0.91526416]
[1749004140354,0.73379648,105610.0,105600.0,0.91526416]
[1749004140564,0.71605653,105610.0,105600.0,0.91526416]
[1749004140807,0.73379648,105610.0,105600.0,0.91526416]
[1749004141034,0.71605653,105610.0,105600.0,0.91526416]
[1749004142017,0.73379659,105610.0,105600.0,0.91526416]
[1749004142235,0.71605653,105610.0,105600.0,0.91526416]
[1749004143324,0.7337966,105610.0,105600.0,0.91526416]
[1749004143570,0.71605653,105610.0,105600.0,0.91526416]
[1749004143785,0.7337966,105610.0,105600.0,0.91526416]
[1749004144009,0.71605653,105610.0,105600.0,0.91526416]
[1749004146303,0.3611,105610.0,105600.0,0.91526416]
[1749004146541,0.7337966,105610.0,105600.0,0.91526416]
[1749004147266,0.71605653,105610.0,105600.0,0.91526416]
[1749004147722,0.7337966,105610.0,105600.0,0.91526416]
[1749004147924,0.71605653,105610.0,105600.0,0.91526416]
[1749004148415,0.73379659,105610.0,105600.0,0.91526416]
[1749004148645,0.71605653,105610.0,105600.0,0.91526416]
[1749004148845,0.73379659,105610.0,105600.0,0.91526416]
[1749004149391,0.71605653,105610.0,105600.0,0.91526416]
[1749004149638,0.345,105610.0,105600.0,0.93066416]
[1749004149865,0.35995653,105610.0,105600.0,1.04211846]
[1749004150967,0.35795653,105610.0,105600.0,1.04211846]
[1749004151188,0.35895653,105610.0,105600.0,1.04211846]
[1749004151404,0.35595653,105610.0,105600.0,1.04211846]
[1749004151615,0.35695653,105610.0,105600.0,1.04211846]
[1749004151821,0.35695653,105610.0,105600.0,1.05148711]
[1749004152244,0.35695653,105610.0,105600.0,1.04211846]
[1749004159485,0.35695653,105610.0,105600.0,1.04199846]
[1749004163028,0.002,105610.0,105600.0,1.04199846]
[1749004163243,0.35695653,105610.0,105600.0,1.04199846]
[1749004163456,0.002,105610.0,105600.0,1.04199846]
[1749004167879,0.35695653,105610.0,105600.0,1.04199846]
[1749004169933,0.35695653,105610.0,105600.0,0.75315846]
[1749004170153,0.35695653,105610.0,105600.0,1.04195846]
[1749004173202,0.3567276,105610.0,105600.0,1.04195846]
[1749004178202,0.3567276,105610.0,105600.0,1.02635846]
[1749004178407,0.3567276,105610.0,105600.0,1.01095846]
[1749004178622,0.3726276,105610.0,105600.0,1.01095846]
[1749004178833,0.7273552,105610.0,105600.0,0.63363846]
[1749004179049,0.7273552,105610.0,105600.0,1.01087846]
[1749004179255,0.7273552,105610.0,105600.0,0.63363846]
[1749004179466,0.7426552,105610.0,105600.0,1.01087846]
[1749004180307,0.7426552,105610.0,105600.0,1.01083846]
[1749004181966,0.3879276,105610.0,105600.0,1.01083846]
[1749004182970,0.7426552,105610.0,105600.0,1.01083846]
[1749004184141,0.7273552,105610.0,105600.0,1.01083846]
[1749004184775,0.3726276,105610.0,105600.0,1.01083846]
[1749004195003,0.002,105610.0,105600.0,1.01083846]
[1749004195278,0.3567276,105610.0,105600.0,1.02743846]
[1749004197634,0.3728276,105610.0,105600.0,1.01083846]
[1749004198513,0.3728276,105610.0,105600.0,1.02633846]
[1749004199651,0.3567276,105610.0,105600.0,1.00633846]
[1749004200000,0.3567276,105610.0,105600.0,0.99083846]
[1749004200185,0.3728276,105610.0,105600.0,0.99083846]
[1749004200428,0.3728276,105610.0,105600.0,0.99079846]
[1749004205588,0.3567276,105610.0,105600.0,1.00709846]
[1749004207095,0.3567276,105610.0,105600.0,0.99075846]
[1749004207305,0.3730276,105610.0,105600.0,0.99075846]
[1749004211281,0.3730276,105610.0,105600.0,0.70207846]
[1749004211487,0.3730276,105610.0,105600.0,0.99075846]
[1749004228729,0.3730276,105610.0,105600.0,0.70207846]
[1749004228945,0.7428552,105610.0,105600.0,0.99059846]
[1749004229153,0.7428552,105610.0,105600.0,0.61363846]
[1749004229405,0.7428552,105610.0,105600.0,0.99055846]
[1749004234375,0.7428552,105610.0,105600.0,0.70195846]
[1749004234615,0.7428552,105610.0,105600.0,0.99055846]
[1749004237002,0.7428552,105610.0,105600.0,0.61363846]
[1749004237229,0.7428552,105610.0,105600.0,0.89470416]
[1749004237439,0.7428552,105610.0,105600.0,0.60610416]
[1749004237660,0.7428552,105610.0,105600.0,0.89470416]
[1749004238078,0.75248579,105610.0,105600.0,0.89470416]
[1749004238561,0.7428552,105610.0,105600.0,0.89470416]
[1749004238781,0.76059005,105610.0,105600.0,0.89470416]
[1749004238998,0.7428552,105610.0,105600.0,0.89470416]
[1749004239214,0.76059017,105610.0,105600.0,0.89470416]
[1749004239435,0.7428552,105610.0,105600.0,0.89470416]
[1749004240973,0.75218625,105610.0,105600.0,0.89470416]
[1749004242746,0.7428552,105610.0,105600.0,0.89470416]
[1749004244323,0.75246486,105610.0,105600.0,0.89470416]
[1749004245440,0.75246486,105610.0,105600.0,0.91470416]
[1749004246102,0.7428552,105610.0,105600.0,0.91470416]
[1749004247204,0.7428552,105610.0,105600.0,0.62610416]
[1749004247412,0.7428552,105610.0,105600.0,0.91470416]
[1749004248274,0.75256723,105610.0,105600.0,0.91470416]
[1749004250404,0.7428552,105610.0,105600.0,0.91470416]
[1749004251565,0.75224313,105610.0,105600.0,0.91470416]
[1749004251771,0.7428552,105610.0,105600.0,0.91470416]
[1749004252429,0.7428552,105610.0,105600.0,1.01055846]
[1749004252644,0.7277552,105610.0,105600.0,1.01055846]
[1749004253536,0.7437552,105610.0,105600.0,1.01055846]
[1749004258496,0.76148665,105610.0,105600.0,1.01055846]
[1749004258716,0.7437552,105610.0,105600.0,1.01055846]
[1749004259137,0.76148522,105610.0,105600.0,1.01055846]
[1749004259345,0.7437552,105610.0,105600.0,1.01055846]
[1749004259969,0.7614857,105610.0,105600.0,1.01055846]
[1749004260174,0.7437552,105610.0,105600.0,1.01055846]
[1749004260790,0.76148566,105610.0,105600.0,1.01055846]
[1749004260996,0.7437552,105610.0,105600.0,1.01055846]
[1749004261211,0.76148613,105610.0,105600.0,1.01055846]
[1749004261416,0.7437552,105610.0,105600.0,1.01055846]
[1749004262109,0.76148703,105610.0,105600.0,1.01055846]
[1749004262333,0.7277552,105610.0,105600.0,1.01055846]
[1749004262778,0.0183,105610.0,105600.0,1.01055846]
[1749004263011,0.002,105610.0,105600.0,1.04165846]
[1749004263233,0.3567276,105610.0,105600.0,1.04165846]
[1749004268214,0.002,105610.0,105600.0,1.04165846]
[1749004268436,0.3567276,105610.0,105600.0,1.04165846]
[1749004269337,0.002,105610.0,105600.0,1.04165846]
[1749004270646,0.001,105610.0,105600.0,1.04165846]
[1749004270849,0.001,105610.0,105600.0,1.04265846]
[1749004271065,0.3547276,105620.0,105610.0,0.0312]
[1749004271276,0.3547276,105620.0,105610.0,0.12942112]
[1749004272351,0.3567276,105620.0,105610.0,0.12942112]
[1749004274507,0.7114552,105620.0,105610.0,0.11422112]
[1749004274726,0.7114552,105620.0,105610.0,0.1118543]
[1749004274951,0.7278552,105620.0,105610.0,0.0958543]
[1749004276947,0.7278552,105620.0,105610.0,0.4726143]
[1749004278197,0.7434552,105620.0,105610.0,0.4726143]
[1749004280632,0.7278552,105620.0,105610.0,0.4726143]
[1749004280852,0.0184,105620.0,105610.0,0.4726143]
[1749004281066,0.7278552,105620.0,105610.0,0.4726143]
[1749004284952,0.7278552,105620.0,105610.0,0.1841343]
[1749004285167,0.7278552,105620.0,105610.0,0.4726943]
[1749004289042,0.0184,105620.0,105610.0,0.4726943]
[1749004289277,0.7278552,105620.0,105610.0,0.7178943]
[1749004289853,0.7428552,105620.0,105610.0,0.7178943]
[1749004290153,0.7428552,105620.0,105610.0,0.4293343]
[1749004290399,0.7428552,105620.0,105610.0,0.3410543]
[1749004290597,0.7428552,105620.0,105610.0,0.7178143]
[1749004292641,0.7428552,105620.0,105610.0,0.3410543]
[1749004292855,0.7428552,105620.0,105610.0,0.7177743]
[1749004294789,0.7428552,105620.0,105610.0,0.4292943]
[1749004295003,0.7428552,105620.0,105610.0,0.7177743]
[1749004296288,0.7428552,105620.0,105610.0,0.9902143]
[1749004299254,0.7278552,105620.0,105610.0,0.9902143]
[1749004314256,0.3567276,105620.0,105610.0,1.0216143]
[1749004315601,0.3557276,105620.0,105610.0,1.0216143]
[1749004316468,0.3547276,105620.0,105610.0,1.0216143]
[1749004316890,0.3547276,105620.0,105610.0,1.0226143]
[1749004319381,0.6947276,105620.0,105610.0,1.0226143]
[1749004321277,0.3547276,105620.0,105610.0,1.0226143]
[1749004321490,0.3547276,105630.0,105610.0,1.0074143]
[1749004321705,0.6947276,105630.0,105620.0,0.1108543]
[1749004322347,0.3547276,105630.0,105620.0,0.1108543]
[1749004322567,0.3547276,105630.0,105620.0,0.1201128]
[1749004322804,0.3547276,105630.0,105620.0,0.1108543]
[1749004323025,0.3557276,105630.0,105620.0,0.1108543]
[1749004323898,0.3547276,105630.0,105620.0,0.1108543]
[1749004324115,0.3547276,105630.0,105620.0,0.1118543]
[1749004325023,0.3547276,105630.0,105620.0,0.13022089]
[1749004326129,0.09214096,105640.0,105620.0,0.13022089]
[1749004326340,0.3547276,105630.0,105620.0,0.13022089]
[1749004326552,0.3547276,105630.0,105620.0,0.50690089]
[1749004326767,0.3547276,105630.0,105620.0,0.5045343]
[1749004326989,0.3547276,105630.0,105620.0,0.51396204]
[1749004327414,0.3547276,105630.0,105620.0,0.5045343]
[1749004328501,0.3547276,105630.0,105620.0,0.4885343]
[1749004328737,0.3547276,105630.0,105620.0,0.1118543]
[1749004328965,0.3713276,105630.0,105620.0,0.4735343]
[1749004329859,0.3713276,105630.0,105620.0,0.1850943]
[1749004330070,0.3713276,105630.0,105620.0,0.4734943]
[1749004332710,0.3547276,105630.0,105620.0,0.4889943]
[1749004336657,0.44726856,105640.0,105620.0,0.4889943]
[1749004336658,0.09254096,105640.0,105620.0,0.4889943]
[1749004336866,0.3547276,105630.0,105620.0,0.4889943]
[1749004340954,0.3547276,105630.0,105620.0,0.2005943]
[1749004341167,0.3708276,105630.0,105620.0,0.4734943]
[1749004343840,0.3547276,105630.0,105620.0,0.4734943]
[1749004344055,0.3547276,105630.0,105620.0,0.4885943]
[1749004347616,0.3547276,105630.0,105620.0,0.7337543]
[1749004352270,0.44646856,105640.0,105620.0,0.7490543]
[1749004353615,0.44646856,105640.0,105620.0,0.7480543]
[1749004353816,0.44646856,105640.0,105620.0,0.7490543]
[1749004354479,0.3547276,105630.0,105620.0,0.7337543]
[1749004354900,0.3547276,105630.0,105620.0,0.4453543]
[1749004355108,0.3698276,105630.0,105620.0,0.7186543]
[1749004355333,0.3698276,105630.0,105620.0,0.7186143]
[1749004355559,0.7406552,105630.0,105620.0,0.3420143]
[1749004356030,0.7406552,105630.0,105620.0,0.7186143]
[1749004356489,0.7406552,105630.0,105620.0,0.24616]
[1749004356687,0.7406552,105630.0,105620.0,0.62176]
[1749004356688,1.0953828,105630.0,105620.0,0.62176]
[1749004356919,1.11311936,105630.0,105620.0,0.33336]
[1749004357118,0.7406552,105630.0,105620.0,0.62276]
[1749004357327,0.74080374,105630.0,105620.0,0.62276]
[1749004357717,0.74080374,105630.0,105620.0,0.62176]
[1749004358098,0.74280374,105630.0,105620.0,0.62176]
[1749004358303,0.76054035,105630.0,105620.0,0.62176]
[1749004358509,0.76354036,105630.0,105620.0,0.62176]
[1749004358686,0.76354035,105630.0,105620.0,0.62176]
[1749004358863,0.74580374,105630.0,105620.0,0.62176]
[1749004359829,0.76354033,105630.0,105620.0,0.62176]
[1749004360175,0.74580374,105630.0,105620.0,0.62176]
[1749004360658,0.76354034,105630.0,105620.0,0.62176]
[1749004360874,0.74580374,105630.0,105620.0,0.62176]
[1749004361315,1.1035408,105630.0,105620.0,0.62176]
[1749004361529,1.08580374,105630.0,105620.0,0.62176]
[1749004362925,1.10354042,105630.0,105620.0,0.62176]
[1749004363127,1.08580374,105630.0,105620.0,0.62176]
[1749004363745,0.3762,105630.0,105620.0,0.62176]
[1749004363983,0.71490187,105630.0,105620.0,0.7176143]
[1749004364882,0.70990187,105630.0,105620.0,0.7176143]
[1749004365347,0.36990187,105630.0,105620.0,0.7186143]
[1749004366030,0.36990187,105630.0,105620.0,0.7176143]
[1749004367573,0.36990187,105630.0,105620.0,0.7186143]
[1749004369090,0.35480187,105630.0,105620.0,0.7186143]
[1749004369507,0.37040187,105630.0,105620.0,0.7186143]
[1749004372708,0.37040187,105630.0,105620.0,0.4302143]
[1749004372914,0.37040187,105630.0,105620.0,0.7186143]
[1749004376783,0.38600187,105630.0,105620.0,0.7186143]
[1749004377869,0.38600187,105630.0,105620.0,0.9910143]
[1749004378093,0.38600187,105630.0,105620.0,0.6144143]
[1749004378337,0.38600187,105630.0,105620.0,0.9910143]
[1749004378561,0.74080374,105630.0,105620.0,0.9910143]
[1749004378776,0.38600187,105630.0,105620.0,0.9910143]
[1749004379013,0.0312,105630.0,105620.0,0.9910143]
[1749004379251,0.38600187,105630.0,105620.0,0.9910143]
[1749004383613,0.74080374,105630.0,105620.0,0.9910143]
[1749004384691,0.38600187,105630.0,105620.0,0.9910143]
[1749004385137,0.74080374,105630.0,105620.0,0.9910143]
[1749004386022,0.0312,105630.0,105620.0,0.9910143]
[1749004386225,0.38600187,105630.0,105620.0,0.9910143]
[1749004386660,0.38600187,105630.0,105620.0,0.7026143]
[1749004386873,0.38600187,105630.0,105620.0,0.9919743]
[1749004387713,0.74080374,105630.0,105620.0,0.9919743]
[1749004388389,0.74080374,105630.0,105620.0,0.7026143]
[1749004388659,0.74080374,105630.0,105620.0,0.9925343]
[1749004389089,0.74080374,105630.0,105620.0,0.6144143]
[1749004389310,0.74080374,105630.0,105620.0,0.9926143]
[1749004389524,0.74080374,105630.0,105620.0,0.89676]
[1749004389946,0.75853982,105630.0,105620.0,0.89672]
[1749004390154,0.74080374,105630.0,105620.0,0.89672]
[1749004390570,1.08080374,105630.0,105620.0,0.89668]
[1749004391003,1.08180374,105630.0,105620.0,0.89568]
[1749004391436,1.10054065,105630.0,105620.0,0.89568]
[1749004391856,1.08280374,105630.0,105620.0,0.89568]
[1749004394004,1.08280374,105630.0,105620.0,0.60588]
[1749004394218,1.08280374,105630.0,105620.0,0.89552]
[1749004396902,1.10054069,105630.0,105620.0,0.89552]
[1749004397119,1.08280374,105630.0,105620.0,0.89552]
[1749004397546,1.10054069,105630.0,105620.0,0.89536]
[1749004397769,1.08280374,105630.0,105620.0,0.89536]
[1749004398196,1.10054103,105630.0,105620.0,0.89536]
[1749004398413,1.10054105,105630.0,105620.0,0.89536]
[1749004398633,1.08280374,105630.0,105620.0,0.89536]
[1749004400667,1.10054064,105630.0,105620.0,0.89536]
[1749004400891,1.08280374,105630.0,105620.0,0.89536]
[1749004402006,1.10054029,105630.0,105620.0,0.89536]
[1749004402331,1.10054026,105630.0,105620.0,0.89536]
[1749004402847,1.08280374,105630.0,105620.0,0.89536]
[1749004405464,1.08280374,105630.0,105620.0,0.89524]
[1749004405876,1.10054016,105630.0,105620.0,0.51756]
[1749004406080,1.08280374,105630.0,105620.0,0.89524]
[1749004406846,1.10054031,105630.0,105620.0,0.89524]
[1749004407168,1.08280374,105630.0,105620.0,0.89524]
[1749004408342,1.10054031,105630.0,105620.0,0.89524]
[1749004408690,1.08280374,105630.0,105620.0,0.89524]
[1749004409736,1.10054052,105630.0,105620.0,0.60592]
[1749004409937,1.08280374,105630.0,105620.0,0.89512]
[1749004410388,1.10054086,105630.0,105620.0,0.89512]
[1749004410606,1.08280374,105630.0,105620.0,0.89512]
[1749004410840,1.10054089,105630.0,105620.0,0.89512]
[1749004411282,0.3732,105630.0,105620.0,0.89512]
[1749004411520,1.08280374,105630.0,105620.0,0.89512]
[1749004411725,1.10054088,105630.0,105620.0,0.89512]
[1749004412354,1.11827793,105630.0,105620.0,0.89512]
[1749004412564,1.10054088,105630.0,105620.0,0.89512]
[1749004412987,1.11827796,105630.0,105620.0,0.89512]
[1749004413204,1.10054088,105630.0,105620.0,0.89512]
[1749004413808,1.11827794,105630.0,105620.0,0.89512]
[1749004414045,1.10054088,105630.0,105620.0,0.89512]
[1749004414255,1.118278,105630.0,105620.0,0.89512]
[1749004414495,1.10960811,105630.0,105620.0,0.60592]
[1749004415159,1.10960811,105630.0,105620.0,0.89532]
[1749004415160,1.20211933,105630.0,105620.0,0.89532]
[1749004415602,1.46440998,105630.0,105600.0,0.03493612]
[1749004415829,0.372,105620.0,105610.0,0.3782]
[1749004416051,0.38106858,105620.0,105610.0,0.3782]
[1749004416514,0.39880785,105620.0,105610.0,0.3782]
[1749004416741,0.39880785,105620.0,105600.0,0.03493612]
[1749004416742,0.0311,105610.0,105600.0,0.03493612]
[1749004416966,0.74070374,105610.0,105600.0,0.41509612]
[1749004417238,0.74070374,105610.0,105600.0,0.41709612]
[1749004418560,0.74070374,105610.0,105600.0,0.41309612]
[1749004419203,0.38590187,105610.0,105600.0,0.41309612]
[1749004419427,0.36980187,105610.0,105600.0,0.41309612]
[1749004419642,0.36980187,105610.0,105600.0,0.41709612]
[1749004421037,0.38480187,105610.0,105600.0,0.41709612]
[1749004421939,0.38480187,105610.0,105600.0,0.40230416]
[1749004423000,0.73960374,105610.0,105600.0,0.40230416]
[1749004423628,0.74896637,105610.0,105600.0,0.40230416]
[1749004425020,0.74896637,105610.0,105600.0,0.41709724]
[1749004425156,0.74896637,105610.0,105600.0,0.93481724]
[1749004426388,1.117756,105610.0,105600.0,0.93481724]
[1749004428957,1.117756,105610.0,105600.0,0.93441724]
[1749004430481,0.76295413,105610.0,105600.0,0.93441724]
[1749004432926,0.777756,105610.0,105600.0,0.91962416]
[1749004433436,0.77789176,105610.0,105600.0,0.91962416]
[1749004436370,0.76289176,105610.0,105600.0,0.91962416]
[1749004439032,0.76289176,105610.0,105600.0,0.63062416]
[1749004439257,0.76289176,105610.0,105600.0,0.91922416]
[1749004441978,0.05315226,105610.0,105600.0,0.91922416]
[1749004442189,0.76289176,105610.0,105600.0,0.91922416]
[1749004445608,0.77879176,105610.0,105600.0,0.91922416]
[1749004445881,0.76289176,105610.0,105600.0,0.91922416]
[1749004446344,0.74789176,105610.0,105600.0,0.93462416]
[1749004446820,0.74789176,105610.0,105600.0,1.03047846]
[1749004447047,0.69486975,105620.0,105610.0,0.0154]
[1749004447328,0.71900255,105620.0,105610.0,0.1112543]
[1749004447525,0.71900255,105620.0,105610.0,0.1270543]
[1749004448184,0.71900255,105620.0,105610.0,0.1280543]
[1749004448185,0.7097395,105620.0,105610.0,0.1280543]
[1749004448459,0.7097395,105620.0,105610.0,0.1122543]
[1749004449069,0.7097395,105620.0,105610.0,0.1132543]
[1749004449298,0.35473785,105620.0,105610.0,0.1132543]
[1749004450779,0.37113785,105620.0,105610.0,0.3865343]
[1749004451426,0.38613785,105620.0,105610.0,0.1861343]
[1749004451649,1.0808757,105620.0,105610.0,0.09028]
[1749004451876,1.0808757,105620.0,105610.0,0.37908]
[1749004451877,1.08994387,105620.0,105610.0,0.37908]
[1749004452087,1.10768264,105620.0,105610.0,0.37908]
[1749004452323,1.08994387,105620.0,105610.0,0.37908]
[1749004453584,0.73520602,105620.0,105610.0,0.37908]
[1749004453787,1.10768316,105620.0,105610.0,0.37908]
[1749004454176,1.08994461,105620.0,105610.0,0.37908]
[1749004454613,1.10768334,105620.0,105610.0,0.37908]
[1749004454834,1.08994461,105620.0,105610.0,0.37908]
[1749004455298,0.73520676,105620.0,105610.0,0.37908]
[1749004455535,0.75294544,105620.0,105610.0,0.37908]
[1749004455742,0.73520676,105620.0,105610.0,0.37908]
[1749004456566,0.73520676,105620.0,105610.0,0.002]
[1749004456567,0.75294553,105620.0,105610.0,0.002]
[1749004456781,0.73520676,105620.0,105610.0,0.37896]
[1749004456992,1.08994461,105620.0,105610.0,0.37896]
[1749004457822,0.73520711,105620.0,105610.0,0.002]
[1749004458177,0.74387637,105620.0,105610.0,0.37888]
[1749004458396,0.73520704,105620.0,105610.0,0.37888]
[1749004459088,0.72613785,105620.0,105610.0,0.37888]
[1749004459298,0.73520707,105620.0,105610.0,0.37888]
[1749004459967,0.75294574,105620.0,105610.0,0.37888]
[1749004460205,0.75294586,105620.0,105610.0,0.37888]
[1749004460431,0.75294582,105620.0,105610.0,0.37888]
[1749004460663,0.73520707,105620.0,105610.0,0.37888]
[1749004461310,0.75294574,105620.0,105610.0,0.37888]
[1749004461545,0.73520707,105620.0,105610.0,0.37888]
[1749004461806,0.73520749,105620.0,105610.0,0.37888]
[1749004462290,0.72020749,105620.0,105610.0,0.62412]
[1749004462742,0.73794607,105620.0,105610.0,0.62412]
[1749004462949,0.72020749,105620.0,105610.0,0.62412]
[1749004463164,0.75354607,105620.0,105610.0,0.62412]
[1749004463335,0.73580749,105620.0,105610.0,0.62412]
[1749004463517,0.73794616,105620.0,105610.0,0.62412]